bitfinex-derivatives/quotes_ETHF0:USTF0_20251024
["timestamp","ask_amount","ask_price","bid_price","bid_amount"]
[1761305883536,0.32736726,3945.0,3944.8,0.3488]
[1761305885035,0.4562,3944.9,3944.8,0.3488]
[1761305885833,0.7804,3944.9,3944.8,0.3488]
[1761305887541,0.3242,3944.9,3944.8,0.3488]
[1761305889041,0.00316726,3945.0,3944.9,0.805]
[1761305890632,0.45609,3945.9,3945.6,0.45611]
[1761305890846,0.45609,3945.9,3945.7,0.3488]
[1761305891337,0.45609,3945.9,3945.8,0.3488]
[1761305891847,0.00188215,3945.9,3945.8,0.3488]
[1761305894233,0.00188215,3945.9,3945.8,9.7718]
[1761305894850,0.45796215,3945.9,3945.8,9.7718]
[1761305896545,0.2119,3945.7,3945.6,0.3488]
[1761305896752,1.2079,3945.7,3945.6,9.9914]
[1761305898041,1.2079,3945.7,3945.2,0.5684]
[1761305898042,0.45615,3945.3,3945.2,0.5684]
[1761305898252,0.6681,3944.9,3944.8,1.24071]
[1761305898545,0.66806,3945.2,3945.1,0.7845]
[1761305898750,1.20796,3945.2,3945.1,0.7845]
[1761305900048,0.3242,3943.8,3943.7,0.35206789]
[1761305900344,0.45646,3942.6,3942.5,0.3488]
[1761305900550,0.78066,3942.6,3942.5,0.3488]
[1761305901049,0.45641,3943.1,3942.5,0.3488]
[1761305901238,0.45642,3943.0,3942.8,0.3488]
[1761305901441,0.78062,3943.0,3942.9,0.3488]
[1761305901853,0.3242,3943.0,3942.9,0.3488]
[1761305902044,0.00202631,3943.1,3942.9,0.3488]
[1761305902243,0.00202631,3943.1,3942.9,0.80522]
[1761305902444,0.00202631,3943.1,3943.0,0.3488]
[1761305904247,0.32622631,3943.1,3943.0,0.3488]
[1761305904649,0.32622631,3943.1,3943.0,2.9078]
[1761305904851,0.00202631,3943.1,3943.0,2.9078]
[1761305908859,0.1324,3944.5,3944.0,0.3239]
[1761305908860,0.45629,3944.1,3944.0,0.3239]
[1761305909648,0.45628,3944.2,3944.1,0.3238]
[1761305909862,0.45839361,3944.2,3944.1,0.3238]
[1761305910852,0.00211361,3944.2,3944.1,0.3238]
[1761305911754,0.00211361,3944.2,3944.1,0.78009]
[1761305913158,0.45618,3945.1,3945.0,0.93928]
[1761305913458,0.45618,3945.1,3945.0,0.4831]
[1761305914247,0.45843216,3945.1,3945.0,0.4831]
[1761305914654,0.45842216,3945.1,3945.0,0.93928]
[1761305914861,0.45842216,3945.1,3945.0,0.4831]
[1761305915059,0.45842216,3945.1,3945.0,0.93928]
[1761305915858,0.00225216,3945.1,3945.0,0.93928]
[1761305916657,0.00225216,3945.1,3945.0,1.38448]
[1761305917560,0.45613,3945.6,3945.5,0.9283]
[1761305917756,0.45613,3945.6,3945.5,10.3513]
[1761305918056,0.45613,3945.6,3945.5,10.80743]
[1761305918261,0.45613,3945.6,3945.5,10.3513]
[1761305918466,0.68658218,3945.6,3945.5,10.35380343]
[1761305918866,1.02968218,3945.6,3945.5,10.35380343]
[1761305919269,0.68658218,3945.6,3945.5,10.35380343]
[1761305922367,1.24608218,3945.6,3945.5,0.00250343]
[1761305922572,1.24608218,3945.6,3943.8,1.9185]
[1761305922573,0.7875,3943.9,3943.8,1.9185]
[1761305922871,0.7875,3943.9,3943.8,2.137]
[1761305923267,0.4444,3943.9,3943.8,2.137]
[1761305923468,0.4444,3943.9,3943.8,2.1393259]
[1761305923768,0.228,3943.9,3943.8,2.1393259]
[1761305923966,0.7875,3943.9,3943.8,0.5748259]
[1761305924271,0.228,3943.9,3943.8,10.2133259]
[1761305924772,1.02738,3944.2,3944.1,0.2267]
[1761305924960,1.02738,3944.2,3944.1,0.5725]
[1761305926574,1.24378,3944.2,3944.1,0.5725]
[1761305927473,1.24378,3944.2,3944.1,0.791]
[1761305931279,1.24381,3943.9,3943.8,9.9948259]
[1761305931471,0.68431,3943.9,3943.8,10.6696459]
[1761305932573,0.68431,3943.9,3943.8,10.6686459]
[1761305932870,0.45631,3943.9,3943.8,1.2496459]
[1761305933066,0.4563,3944.1,3944.0,0.9283]
[1761305933268,0.4563,3944.1,3944.0,8.2073]
[1761305933869,0.4563,3944.1,3944.0,8.6636]
[1761305934178,1.14052,3944.9,3944.3,0.791]
[1761305934179,0.45626,3944.4,3944.3,0.791]
[1761305934669,0.45626,3944.4,3944.3,1.24726]
[1761305934865,0.68426,3944.4,3944.3,1.24726]
[1761305935066,0.228,3944.7,3944.6,0.791]
[1761305935274,1.24372,3944.7,3944.6,0.791]
[1761305937976,0.90062,3944.7,3944.6,0.791]
[1761305938475,1.24372,3944.7,3944.6,0.791]
[1761305938978,0.68422,3944.7,3944.6,0.791]
[1761305940775,1.14067,3944.4,3944.0,0.2313]
[1761305941077,1.21659,3944.1,3944.0,0.2313]
[1761305942877,1.14067,3944.3,3944.2,0.23]
[1761305942878,0.45627,3944.3,3944.2,0.23]
[1761305943180,0.67577,3944.3,3944.2,0.7808]
[1761305943681,0.67577,3944.3,3944.2,1.23707]
[1761305944476,0.45624,3944.5,3944.4,1.23704]
[1761305945477,1.21654,3944.5,3944.4,0.7808]
[1761305945875,1.21654,3944.5,3944.4,1.23705]
[1761305946485,1.21654,3944.5,3944.4,0.7808]
[1761305947781,0.67574,3944.5,3944.4,1.23705]
[1761305948183,0.45623,3944.6,3944.5,1.36773]
[1761305949278,0.22195218,3945.6,3945.5,0.2313]
[1761305949484,0.89006,3945.2,3945.1,9.9618]
[1761305949684,0.89006,3945.2,3945.1,10.1918]
[1761305950387,0.3264,3945.4,3945.3,0.7808]
[1761305950388,1.00204,3945.4,3945.3,0.7808]
[1761305950685,0.45614,3945.4,3945.3,0.7808]
[1761305951488,0.67807218,3945.6,3945.5,0.9115]
[1761305952482,0.45857218,3945.6,3945.5,0.9115]
[1761305953581,0.67807218,3945.6,3945.5,0.9115]
[1761305953786,1.00447218,3945.6,3945.5,0.9115]
[1761305954089,0.67806218,3945.6,3945.5,0.9115]
[1761305955794,0.00245218,3945.6,3945.5,0.9115]
[1761305955994,0.00245218,3945.6,3945.5,1.36762]
[1761305956990,0.67806218,3945.6,3945.5,10.77262]
[1761305957196,0.22195218,3945.6,3945.5,10.77262]
[1761305957390,0.00245218,3945.6,3945.5,10.77262]
[1761305958591,0.45856218,3945.6,3945.5,10.77262]
[1761305959182,0.00245218,3945.6,3945.5,10.77262]
[1761305960192,0.89246218,3945.6,3945.5,0.7808]
[1761305960489,0.7603,3944.6,3944.5,1.36774]
[1761305960699,1.21644,3945.4,3945.3,0.5508]
[1761305960892,1.21644,3945.4,3945.3,0.2313]
[1761305961194,1.21646,3945.2,3945.1,7.913]
[1761305961495,1.21649,3944.9,3944.8,1.00701]
[1761305961794,0.89009,3944.9,3944.8,10.63901]
[1761305963392,0.45619,3944.9,3944.8,10.63901]
[1761305963593,0.45619,3944.9,3944.8,1.23701]
[1761305963797,0.45619,3944.9,3944.8,10.63801]
[1761305964000,0.67569,3944.9,3944.8,10.63801]
[1761305964194,1.00209,3944.9,3944.8,10.63801]
[1761305964399,0.7603,3945.3,3945.2,0.7808]
[1761305965501,1.21645,3945.3,3945.2,0.7808]
[1761305965998,0.67565,3945.3,3945.2,0.7808]
[1761305966303,1.21645,3945.3,3945.2,0.7808]
[1761305966901,1.21645,3945.3,3945.2,0.2313]
[1761305967401,1.21645,3945.3,3945.2,0.7808]
[1761305967699,0.67565,3945.3,3945.2,0.7808]
[1761305968291,1.21645,3945.3,3945.2,0.7808]
[1761305971011,0.67565,3945.3,3945.2,1.23696]
[1761305971306,0.45615,3945.3,3945.2,1.23696]
[1761305971811,0.45614,3945.5,3945.4,0.45613]
[1761305972011,0.45614,3945.5,3945.4,1.23013]
[1761305973108,0.68354,3945.5,3945.4,0.774]
[1761305973314,0.68354,3945.5,3945.4,1.23014]
[1761305973718,0.00245218,3945.6,3945.5,1.36442]
[1761305973916,0.54985218,3945.6,3945.5,1.36442]
[1761305974212,0.7808,3945.4,3945.3,1.00204]
[1761305974417,0.7808,3945.4,3945.3,10.62414]
[1761305974812,0.4608,3945.4,3945.3,10.62414]
[1761305975722,0.45613,3945.5,3945.4,1.23014]
[1761305975923,0.68353,3945.5,3945.4,1.23014]
[1761305977022,0.2274,3945.5,3945.4,1.23014]
[1761305977924,0.2274,3945.5,3945.4,10.62114]
[1761305979418,0.68596218,3945.6,3945.5,1.36442]
[1761305979817,1.00596218,3945.6,3945.5,1.36442]
[1761305980723,1.00596218,3945.6,3945.5,10.75442]
[1761305980923,0.68596218,3945.6,3945.5,10.75442]
[1761305983723,1.00596218,3945.6,3945.5,0.9083]
[1761305984025,1.00596218,3945.6,3945.5,9.2969]
[1761305984026,1.33003142,3945.6,3945.5,9.2969]
[1761305984626,1.33003142,3945.6,3945.5,9.6289]
[1761305985027,1.33003142,3945.6,3945.5,9.857]
[1761305987425,0.68357,3945.2,3945.1,0.332]
[1761305987617,0.68357,3945.2,3945.1,10.158]
[1761305988626,0.45617,3945.2,3945.1,10.61417]
[1761305989127,0.45617,3945.2,3945.1,10.61317]
[1761305991927,0.45617,3945.2,3945.1,10.61117]
[1761305996030,0.45617,3945.2,3945.1,10.60817]
[1761305996724,1.23697,3945.2,3945.1,0.5459]
[1761305997032,1.32767369,3945.2,3945.1,9.5909]
[1761305997631,1.32767369,3945.2,3945.1,9.9229]
[1761305998632,1.32767369,3945.2,3945.1,0.5459]
[1761305998937,1.32767369,3945.2,3945.1,9.9229]
[1761305999930,1.32767369,3945.2,3945.1,10.151]
[1761306000441,1.32767369,3945.2,3945.1,0.774]
[1761306000636,1.32767369,3945.2,3945.1,10.149]
[1761306000637,1.23697,3945.2,3945.1,10.149]
[1761306000828,1.32767467,3945.2,3945.1,10.149]
[1761306001330,0.89851858,3945.4,3945.1,10.149]
[1761306001331,0.00245218,3945.6,3945.5,1.37102]
[1761306001537,0.00245218,3945.6,3945.5,10.74502]
[1761306002537,0.00245218,3945.6,3945.5,0.9149]
[1761306002834,0.45856218,3945.6,3945.5,10.2879]
[1761306003038,0.45856218,3945.6,3945.5,0.9149]
[1761306003647,0.67196218,3945.6,3945.5,10.2879]
[1761306004031,0.45856218,3945.6,3945.5,10.2879]
[1761306004236,0.67196218,3945.6,3945.5,10.2879]
[1761306004446,0.00245218,3945.6,3945.5,10.74402]
[1761306006636,0.45605,3946.2,3946.1,0.7859]
[1761306006840,0.54567609,3946.2,3946.1,0.7859]
[1761306007033,0.54567609,3946.2,3946.1,10.1549]
[1761306007034,0.45605,3946.2,3946.1,10.1549]
[1761306007234,0.66945,3946.2,3946.1,0.7859]
[1761306007431,0.89851858,3946.3,3946.2,0.45604]
[1761306007633,1.66948235,3946.6,3946.3,0.7859]
[1761306007634,0.45602,3946.4,3946.3,0.7859]
[1761306007848,0.45835496,3946.4,3946.3,1.24193]
[1761306008041,0.00233496,3946.4,3946.3,1.24193]
[1761306008229,0.00233496,3946.4,3946.3,0.7859]
[1761306008433,0.67175496,3946.4,3946.3,10.1539]
[1761306008948,0.45835496,3946.4,3946.3,10.1539]
[1761306009243,0.00233496,3946.4,3946.3,10.60993]
[1761306009439,0.45835496,3946.4,3946.3,10.60993]
[1761306010443,0.00233496,3946.4,3946.3,10.60993]
[1761306014746,1.32998235,3947.8,3947.4,0.2242]
[1761306015045,0.90323,3947.2,3947.1,0.5598]
[1761306015344,1.24273,3947.2,3947.1,9.0828]
[1761306015546,1.24273,3947.2,3947.1,9.3089]
[1761306015747,0.90532974,3947.2,3947.1,9.31167114]
[1761306016145,0.67142974,3947.2,3947.1,9.31167114]
[1761306016342,1.24482974,3947.2,3947.1,9.31167114]
[1761306016538,1.24482974,3947.2,3947.1,0.56257114]
[1761306016743,1.24482974,3947.2,3947.1,9.36277114]
[1761306017141,1.24482974,3947.2,3947.1,10.14867114]
[1761306017442,0.67142974,3947.2,3947.1,10.14867114]
[1761306017648,1.24482974,3947.2,3947.1,10.14867114]
[1761306018146,0.44939974,3947.2,3946.4,0.5598]
[1761306018446,1.24288,3945.9,3945.8,0.7859]
[1761306018656,1.24288,3945.9,3945.8,3.3699]
[1761306019046,0.45611,3945.7,3945.6,0.45611]
[1761306019253,0.2134,3945.7,3945.6,10.1429]
[1761306019444,0.2134,3945.7,3945.6,10.14508404]
[1761306019955,0.45609,3945.9,3945.8,0.7859]
[1761306020250,0.7868,3946.4,3946.3,0.7859]
[1761306020553,0.87610139,3946.4,3946.3,0.7859]
[1761306020748,1.33212139,3946.4,3946.3,0.7859]
[1761306021350,1.33212139,3946.4,3946.3,0.2242]
[1761306021550,1.24285,3946.1,3946.0,0.9149]
[1761306021752,1.24285,3946.1,3946.0,10.1419]
[1761306021952,1.24289,3945.8,3945.7,0.7859]
[1761306022149,1.24289,3945.8,3945.7,10.1409]
[1761306023453,0.90333,3946.3,3946.2,0.7859]
[1761306023648,0.99264845,3946.3,3946.2,0.7859]
[1761306024244,1.33214845,3946.3,3946.2,0.7859]
[1761306024748,0.90333,3946.3,3946.2,0.7859]
[1761306024949,0.66943,3946.3,3946.2,10.1399]
[1761306026552,0.45603,3946.4,3946.3,1.24192]
[1761306026851,0.45601,3946.5,3946.4,1.24192]
[1761306027257,1.24276,3946.9,3946.8,0.5598]
[1761306027459,1.3321504,3946.9,3946.8,0.5598]
[1761306027955,1.3321504,3946.9,3946.8,0.7859]
[1761306028258,0.9926504,3946.9,3946.8,0.7859]
[1761306029056,1.3330504,3946.9,3946.8,0.7859]
[1761306029651,0.7587504,3946.9,3946.8,0.7859]
[1761306029859,0.45596,3946.9,3946.8,0.7859]
[1761306030653,0.66766,3946.9,3946.8,0.7859]
[1761306032256,1.21266,3946.9,3946.8,10.1339]
[1761306033460,0.45596,3946.9,3946.8,10.58987]
[1761306034152,1.46932974,3947.2,3947.0,1.37334]
[1761306034153,0.45595,3947.1,3947.0,1.37334]
[1761306034557,0.45803974,3947.2,3947.1,0.45594]
[1761306034762,0.45803974,3947.2,3947.1,1.23274]
[1761306035160,0.45802974,3947.2,3947.1,1.23274]
[1761306035458,0.00209974,3947.2,3947.1,1.23274]
[1761306035658,0.45802974,3947.2,3947.1,1.23274]
[1761306036063,0.00209974,3947.2,3947.1,10.57674]
[1761306037065,0.45802974,3947.2,3947.1,10.57674]
[1761306037263,0.45802974,3947.2,3947.1,1.23274]
[1761306037558,0.45802974,3947.2,3947.1,10.57574]
[1761306038163,0.66972974,3947.2,3947.1,0.7768]
[1761306038357,0.66972974,3947.2,3947.1,10.1198]
[1761306038556,0.45802974,3947.2,3947.1,10.1198]
[1761306038961,0.66972974,3947.2,3947.1,10.1198]
[1761306039156,0.66972974,3947.2,3947.1,10.57574]
[1761306039157,0.00209974,3947.2,3947.1,10.57574]
[1761306041466,0.45586,3947.8,3947.7,1.23267]
[1761306041659,0.45586,3947.8,3947.7,10.57267]
[1761306042162,0.45585,3947.9,3947.8,0.3332]
[1761306042461,0.45898902,3947.9,3947.8,1.23266]
[1761306042663,0.00313902,3947.9,3947.8,1.23266]
[1761306046470,0.67068902,3947.9,3947.8,1.23266]
[1761306049170,0.67068902,3947.9,3947.8,10.56466]
[1761306050074,0.45898902,3947.9,3947.8,10.56466]
[1761306051571,0.45898902,3947.9,3947.3,0.5444]
[1761306051572,1.2126,3947.4,3947.3,0.5444]
[1761306051762,1.21264,3947.1,3947.0,0.2112]
[1761306051965,1.21264,3947.1,3947.0,9.7726]
[1761306052166,0.66764,3947.1,3947.0,9.9132]
[1761306052362,0.66764,3947.1,3947.0,10.2464]
[1761306052773,0.99504,3947.1,3947.0,10.2464]
[1761306052975,0.66764,3947.1,3947.0,10.2464]
[1761306053575,0.66764,3947.1,3947.0,10.70235]
[1761306055277,0.66764,3947.1,3947.0,10.2464]
[1761306057180,0.66764,3947.1,3947.0,10.28114859]
[1761306057382,0.66764,3947.1,3947.0,10.73709859]
[1761306058281,0.45594,3947.1,3947.0,10.73709859]
[1761306062977,0.45593,3947.3,3947.2,0.45593]
[1761306063179,0.45586,3947.8,3947.7,0.787]
[1761306063383,0.45586,3947.8,3947.7,10.107]
[1761306064076,0.66866,3947.8,3947.7,10.107]
[1761306064285,0.66866,3947.8,3947.7,10.14174859]
[1761306064579,0.90144997,3948.2,3947.7,10.14174859]
[1761306064877,0.45586,3947.8,3947.7,10.14174859]
[1761306065086,1.20936,3947.8,3947.7,0.82174859]
[1761306065272,1.20936,3947.8,3947.7,10.13974859]
[1761306067081,0.45586,3947.8,3947.7,10.13974859]
[1761306067282,1.13955,3948.2,3947.8,0.787]
[1761306068079,0.21593902,3947.9,3947.8,10.103]
[1761306068278,0.53453902,3947.9,3947.8,10.13774859]
[1761306068481,0.67178902,3947.9,3947.8,10.13774859]
[1761306068786,0.00313902,3947.9,3947.8,10.59360859]
[1761306071887,0.00313902,3947.9,3947.8,10.58960859]
[1761306072475,0.00313902,3947.9,3947.8,11.26985394]
[1761306076996,1.20924,3948.8,3948.7,0.787]
[1761306077196,0.63387141,3948.2,3948.1,1.24282]
[1761306077396,0.63387141,3948.2,3948.1,10.54982]
[1761306077789,0.42107141,3948.2,3948.1,10.54982]
[1761306077993,0.42408365,3948.2,3948.1,10.55233061]
[1761306078194,0.42408365,3948.2,3948.1,10.55133061]
[1761306082894,0.42408365,3948.2,3948.1,9.30651061]
[1761306082895,1.17758365,3948.2,3948.1,9.30651061]
[1761306083101,1.17758365,3948.2,3948.1,9.86331061]
[1761306083499,1.17758365,3948.2,3948.1,10.09351061]
[1761306085501,0.42408365,3948.2,3948.1,10.54933061]
[1761306085701,0.00301224,3948.2,3948.1,10.54933061]
[1761306086196,0.45882224,3948.2,3948.1,10.09351061]
[1761306086399,1.21232224,3948.2,3948.1,10.08751061]
[1761306086801,0.67162224,3948.2,3948.1,10.08751061]
[1761306087000,0.67162224,3948.2,3948.1,0.78951061]
[1761306087202,0.67162224,3948.2,3948.1,8.50451061]
[1761306088102,0.67162224,3948.2,3948.1,0.78951061]
[1761306088103,1.23162224,3948.2,3948.1,0.78951061]
[1761306088304,1.23162224,3948.2,3948.1,10.08751061]
[1761306089706,0.89372224,3948.2,3948.1,10.08751061]
[1761306090004,0.89372224,3948.2,3948.1,10.08551061]
[1761306090204,0.67162224,3948.2,3948.1,10.08551061]
[1761306090398,0.45882224,3948.2,3948.1,10.54133061]
[1761306090798,0.00301224,3948.2,3948.1,10.54133061]
[1761306091008,0.45882224,3948.2,3948.1,10.54133061]
[1761306091402,0.68242224,3948.2,3948.1,10.08551061]
[1761306092097,0.45882224,3948.2,3948.1,10.54133061]
[1761306092396,0.00301224,3948.2,3948.1,10.54133061]
[1761306094902,0.90144997,3948.9,3948.5,0.45577]
[1761306095103,0.45571,3949.0,3948.9,0.7778]
[1761306095303,0.54400751,3949.0,3948.9,10.0688]
[1761306096107,0.54711961,3949.0,3948.9,10.0688]
[1761306096910,0.54711961,3949.0,3948.9,10.52453]
[1761306097812,0.90811688,3949.0,3948.9,10.52453]
[1761306098000,0.0031121,3949.0,3948.9,10.52453]
[1761306101508,0.0031121,3949.0,3948.9,10.51753]
[1761306103617,0.4588221,3949.0,3948.9,10.51753]
[1761306104113,0.0031121,3949.0,3948.9,10.51753]
[1761306104309,0.0031121,3949.0,3948.9,10.0618]
[1761306104509,0.0031121,3949.0,3948.9,0.7778]
[1761306104908,0.0031121,3949.0,3948.9,10.51452]
[1761306108712,0.0031121,3949.0,3948.9,10.51352]
[1761306111716,0.4588221,3949.0,3948.9,0.7778]
[1761306111921,0.6824221,3949.0,3948.9,10.51052]
[1761306112418,0.4588221,3949.0,3948.9,10.51052]
[1761306112817,0.4588221,3949.0,3948.9,1.23352]
[1761306113120,0.4588221,3949.0,3948.9,10.50652]
[1761306113317,0.6824221,3949.0,3948.9,10.0508]
[1761306113520,0.6824221,3949.0,3948.9,10.50652]
[1761306113917,0.4588221,3949.0,3948.9,10.50652]
[1761306114921,0.4588221,3949.0,3948.9,10.0508]
[1761306115820,0.9270121,3949.0,3948.6,0.3311]
[1761306116024,1.24094,3948.7,3948.6,0.5615]
[1761306116322,1.24094,3948.7,3948.6,0.7778]
[1761306116519,1.24094,3948.7,3948.3,0.3311]
[1761306116729,1.24098,3948.4,3948.3,0.7778]
[1761306116915,1.24098,3948.4,3948.3,10.0468]
[1761306117116,1.24098,3948.4,3948.3,0.7778]
[1761306117318,1.24098,3948.4,3948.3,10.0468]
[1761306121725,0.90578,3948.4,3948.3,10.0468]
[1761306122027,0.67938,3948.4,3948.3,10.0468]
[1761306122229,0.4588221,3949.0,3948.9,0.7609]
[1761306122728,0.6773221,3949.0,3948.9,0.7609]
[1761306123727,0.4588221,3949.0,3948.9,1.21662]
[1761306123932,0.4588221,3949.0,3948.9,0.7609]
[1761306124124,0.9968221,3949.0,3948.9,0.7609]
[1761306124428,1.2230221,3949.0,3948.9,0.7609]
[1761306124822,0.0031121,3949.0,3948.9,0.7609]
[1761306125135,0.4588221,3949.0,3948.9,1.21662]
[1761306125522,0.0031121,3949.0,3948.9,1.21662]
[1761306126522,0.4588221,3949.0,3948.9,1.21662]
[1761306128136,1.2230221,3949.0,3948.9,1.21662]
[1761306130530,0.9035221,3949.0,3948.9,1.21662]
[1761306130934,1.2230221,3949.0,3948.9,1.21662]
[1761306131227,1.2230221,3949.0,3948.9,0.7609]
[1761306133130,0.9035221,3949.0,3948.9,1.21663]
[1761306133341,0.6773221,3949.0,3948.9,1.21663]
[1761306134436,0.4588221,3949.0,3948.9,1.21663]
[1761306135041,0.0031121,3949.0,3948.9,1.21663]
[1761306135239,0.6773321,3949.0,3948.9,1.21663]
[1761306135533,0.9968321,3949.0,3948.9,10.47163]
[1761306137433,0.9968321,3949.0,3948.9,0.7609]
[1761306137636,1.2230321,3949.0,3948.9,8.7529]
[1761306138029,1.2230321,3949.0,3948.9,10.0139]
[1761306139426,0.9035321,3949.0,3948.9,10.0139]
[1761306139628,0.4588321,3949.0,3948.9,10.46963]
[1761306140538,0.6773321,3949.0,3948.9,10.46963]
[1761306141437,0.4588321,3949.0,3948.9,10.46963]
[1761306142040,0.0031121,3949.0,3948.9,10.46963]
[1761306143236,0.4588321,3949.0,3948.9,10.46963]
[1761306144038,0.0031121,3949.0,3948.9,10.46963]
[1761306146944,0.0031121,3949.0,3948.9,0.549]
[1761306146945,1.2230321,3949.0,3948.9,0.549]
[1761306147139,1.2230321,3949.0,3948.9,9.795]
[1761306147341,1.2230321,3949.0,3948.9,10.0069]
[1761306149442,0.9035321,3949.0,3948.9,10.0069]
[1761306149642,0.4588321,3949.0,3948.9,11.14560291]
[1761306149953,0.0031121,3949.0,3948.9,11.14560291]
[1761306150837,0.0031121,3949.0,3948.9,1.89960291]
[1761306151038,0.0031121,3949.0,3948.9,11.14160291]
[1761306151334,0.0031121,3949.0,3948.9,10.45863]
[1761306151842,0.0031121,3949.0,3948.9,11.3656238]
[1761306153747,1.36064478,3949.7,3949.5,0.351]
[1761306153952,0.45564,3949.7,3949.6,10.46705]
[1761306154140,0.54259101,3949.7,3949.6,10.46705]
[1761306154342,0.45563,3949.8,3949.6,10.46705]
[1761306154542,0.45563,3949.8,3949.7,1.22604]
[1761306155051,0.45864957,3949.8,3949.7,1.22604]
[1761306155448,0.00301957,3949.8,3949.7,1.22604]
[1761306155852,1.23224957,3949.8,3949.7,0.7704]
[1761306156054,1.23224957,3949.8,3949.7,10.0084]
[1761306156854,0.67284957,3949.8,3949.7,10.0084]
[1761306157654,0.45864957,3949.8,3949.7,10.46404]
[1761306157949,0.67284957,3949.8,3949.7,10.46404]
[1761306158755,0.00301957,3949.8,3949.7,10.46404]
[1761306159654,0.00301957,3949.8,3949.7,1.22604]
[1761306159841,0.00301957,3949.8,3949.7,10.46104]
[1761306160355,0.00301957,3949.8,3949.7,11.14296941]
[1761306160749,1.36050478,3950.9,3950.8,0.7704]
[1761306160957,0.54235382,3950.9,3950.8,10.0044]
[1761306161249,1.22914,3950.6,3950.5,0.5581]
[1761306161552,1.22914,3950.6,3950.5,9.7911]
[1761306161748,1.23230295,3950.6,3950.5,9.7911]
[1761306161950,1.23230295,3950.6,3950.5,10.0034]
[1761306162352,0.00316295,3950.6,3950.5,10.59765]
[1761306164560,0.00316295,3950.6,3950.5,1.36465]
[1761306164857,0.00316295,3950.6,3950.5,10.59465]
[1761306165951,0.45870295,3950.6,3950.5,0.9091]
[1761306166153,0.21736295,3950.6,3950.5,10.59465]
[1761306166456,0.21736295,3950.6,3950.5,10.1391]
[1761306166457,0.67290295,3950.6,3950.5,10.1391]
[1761306166754,0.67290295,3950.6,3950.5,10.59465]
[1761306166959,0.00316295,3950.6,3950.5,10.59465]
[1761306167458,0.67290295,3950.6,3950.5,10.1391]
[1761306167661,1.23230295,3950.6,3950.5,0.9091]
[1761306167951,1.22917,3950.3,3950.2,0.2187]
[1761306168157,1.22917,3950.3,3950.2,4.8997]
[1761306168358,1.22917,3950.3,3950.2,5.2391]
[1761306169059,1.22917,3950.3,3950.2,5.4514]
[1761306169947,1.22917,3950.3,3950.2,9.9964]
[1761306171952,1.22917,3950.3,3950.2,0.2187]
[1761306172157,1.22917,3950.3,3950.2,9.4447]
[1761306172464,1.22917,3950.3,3950.2,9.226]
[1761306172660,0.5649,3950.0,3949.5,0.3574]
[1761306172961,1.22928,3949.4,3949.3,0.7704]
[1761306173150,1.22928,3949.4,3949.3,5.63309]
[1761306174360,0.66988,3949.4,3949.3,10.44909]
[1761306175054,0.66988,3949.4,3949.3,0.7704]
[1761306175353,0.66988,3949.4,3949.3,9.8014]
[1761306177059,1.00898,3949.4,3949.3,9.8014]
[1761306177260,1.22928,3949.4,3949.3,0.7704]
[1761306177462,1.22928,3949.4,3949.3,9.9924]
[1761306177657,1.22928,3949.4,3949.3,9.4407]
[1761306177860,1.22928,3949.4,3948.7,0.68029364]
[1761306177861,0.66995,3948.8,3948.7,0.68029364]
[1761306178064,1.22937,3948.6,3948.5,0.5581]
[1761306178462,1.22937,3948.6,3948.5,0.7704]
[1761306178965,1.22937,3948.6,3948.2,0.3394]
[1761306178966,0.4558,3948.3,3948.2,0.3394]
[1761306179164,1.2294,3948.3,3948.2,0.5581]
[1761306179658,1.2294,3948.3,3948.2,0.2187]
[1761306179865,1.2294,3948.3,3948.2,0.5608]
[1761306180254,0.3188,3948.6,3948.2,0.7879]
[1761306180455,0.68382,3949.0,3948.9,0.7835]
[1761306180756,0.45572,3949.0,3948.9,0.7835]
[1761306180962,0.68382,3949.0,3948.9,0.7835]
[1761306181163,1.22152,3949.0,3948.9,0.7835]
[1761306185755,0.90272,3949.0,3948.9,0.7835]
[1761306186068,0.45572,3949.0,3948.9,0.7835]
[1761306186457,0.68382,3949.0,3948.9,0.7835]
[1761306186755,0.68382,3949.0,3948.6,9.67377]
[1761306186756,0.7658,3949.6,3949.5,0.4414]
[1761306186955,1.22145,3949.6,3949.5,0.7835]
[1761306187155,0.90500478,3950.1,3949.7,0.3421]
[1761306187361,0.2281,3950.1,3950.0,0.9101]
[1761306187670,0.68369,3950.1,3950.0,0.9101]
[1761306188869,0.45559,3950.1,3950.0,0.9101]
[1761306189659,1.22145,3949.6,3949.5,0.2143]
[1761306189855,1.00261,3949.1,3949.0,0.568]
[1761306190064,1.22151,3949.1,3949.0,4.0674]
[1761306190271,1.22151,3949.1,3949.0,4.4095]
[1761306190569,1.22151,3949.1,3949.0,4.5361]
[1761306191170,0.90271,3949.1,3949.0,4.5361]
[1761306191468,1.22151,3949.1,3949.0,4.5361]
[1761306191665,1.22151,3949.1,3949.0,0.9101]
[1761306193165,0.4492,3949.0,3948.6,0.4414]
[1761306193371,0.2281,3948.7,3948.6,0.4414]
[1761306193663,0.3188,3948.9,3948.6,0.4414]
[1761306193869,0.45574,3948.8,3948.7,0.7835]
[1761306194978,0.2281,3948.9,3948.8,0.5692]
[1761306195172,0.2281,3948.9,3948.8,0.7835]
[1761306195365,0.5469,3948.9,3948.8,0.7835]
[1761306195566,0.7658,3948.9,3948.8,0.7835]
[1761306195866,0.447,3948.9,3948.8,0.7835]
[1761306196457,0.2281,3948.9,3948.8,0.7835]
[1761306197063,0.45573,3949.0,3948.9,0.3421]
[1761306197271,0.45573,3949.0,3948.9,0.7835]
[1761306198971,0.45573,3949.0,3948.9,1.23923]
[1761306200174,0.45573,3949.0,3948.9,0.7835]
[1761306200576,0.45571,3949.1,3949.0,0.9101]
[1761306200769,0.2281,3949.5,3949.4,0.7835]
[1761306201166,0.68376,3949.5,3949.4,0.7835]
[1761306202170,1.00256,3949.5,3949.4,0.7835]